bitfinex/quotes_SOLUSD_20241102
["timestamp","ask_amount","ask_price","bid_price","bid_amount"]
[1730587817726,4.47955097,166.14,166.08,20.0]
[1730587818020,6.127858,166.16,166.08,20.0]
[1730587818331,4.47957854,166.15,166.08,20.0]
[1730587818621,4.47957854,166.14,166.08,20.0]
[1730587818799,6.127858,166.16,166.08,20.0]
[1730587818800,6.127858,166.16,166.09,21.0728]
[1730587819000,4.47947121,166.15,166.09,21.0728]
[1730587819222,4.47947121,166.14,166.09,21.0728]
[1730587819410,6.127858,166.16,166.09,21.0728]
[1730587819611,4.47945769,166.15,166.09,21.0728]
[1730587819917,4.47945769,166.14,166.09,21.0728]
[1730587820219,6.3114,166.14,166.09,21.0728]
[1730587820519,4.47930087,166.13,166.09,15.052]
[1730587820708,21.00357033,166.12,166.03,21.0805]
[1730587820908,4.47927033,166.11,166.03,21.0805]
[1730587821112,16.5243,166.12,166.03,21.0805]
[1730587821316,4.4787741,166.11,166.03,21.0805]
[1730587821507,16.5243,166.12,166.03,21.0805]
[1730587821708,4.47907147,166.11,166.03,21.0805]
[1730587822025,4.47907147,166.1,166.03,21.0805]
[1730587822229,22.5443,166.12,166.03,21.0805]
[1730587822409,4.47913705,166.11,166.03,21.0805]
[1730587822611,4.47883231,166.1,166.03,21.0805]
[1730587822824,22.5443,166.12,166.03,21.0805]
[1730587823132,4.47882799,166.11,166.05,21.0779]
[1730587823427,4.47882799,166.1,166.05,21.0779]
[1730587823726,22.5443,166.12,166.05,21.0779]
[1730587824029,4.47942509,166.11,166.05,21.0779]
[1730587824323,4.47942509,166.1,166.05,21.0779]
[1730587824524,22.5443,166.12,166.05,21.0779]
[1730587824727,4.47973808,166.11,166.05,21.0779]
[1730587824929,4.47973808,166.1,166.05,21.0779]
[1730587825104,22.5443,166.12,166.05,21.0779]
[1730587825304,4.47970045,166.11,166.05,21.0779]
[1730587825501,3.97970045,166.1,166.05,21.0779]
[1730587825722,6.0202,166.11,166.05,21.0779]
[1730587827032,6.0202,166.11,166.02,20.0]
[1730587827827,6.3114,166.1,166.02,20.0]
[1730587828017,12.332,166.1,166.03,21.0805]
[1730587829508,16.5243,166.12,166.04,20.0]
[1730587830036,6.5227,166.14,166.04,20.0]
[1730587830726,6.5227,166.14,166.05,21.0779]
[1730587831111,6.5227,166.14,166.06,20.0]
[1730587832827,6.5227,166.14,166.07,21.0753]
[1730587833728,6.0227,166.14,166.07,21.0753]
[1730587837628,4.48452446,166.13,166.07,21.0753]
[1730587837830,4.48452446,166.12,166.07,21.0753]
[1730587838026,4.48452446,166.11,166.07,21.0753]
[1730587838215,6.0227,166.14,166.07,21.0753]
[1730587838416,4.48508413,166.13,166.07,21.0753]
[1730587838630,4.48508413,166.12,166.07,21.0753]
[1730587838834,4.48508413,166.11,166.07,21.0753]
[1730587839038,4.48508413,166.1,166.07,21.0753]
[1730587839345,4.48468688,166.09,166.05,30.1114]
[1730587839641,6.0193,166.13,166.05,30.1114]
[1730587840139,4.4837804,166.12,166.05,30.1114]
[1730587840326,4.4837804,166.11,166.05,30.1114]
[1730587840640,6.0227,166.14,166.05,30.1114]
[1730587840641,4.4837804,166.1,166.05,30.1114]
[1730587840833,12.0418,166.14,166.05,30.1114]
[1730587841037,4.48419784,166.13,166.05,30.1114]
[1730587841219,4.48419784,166.12,166.05,30.1114]
[1730587841419,4.48419784,166.11,166.05,30.1114]
[1730587841627,6.0227,166.14,166.06,20.0]
[1730587841824,4.48590183,166.13,166.06,20.0]
[1730587842027,4.48590183,166.12,166.06,20.0]
[1730587842220,4.48590183,166.11,166.06,20.0]
[1730587842420,4.48704933,166.1,166.06,20.0]
[1730587842631,6.0186,166.15,166.07,21.0753]
[1730587842832,4.48716242,166.14,166.07,21.0753]
[1730587843027,6.0186,166.15,166.07,21.0753]
[1730587843028,4.48716242,166.13,166.07,21.0753]
[1730587843238,4.48716242,166.12,166.07,21.0753]
[1730587843433,4.48716242,166.11,166.07,21.0753]
[1730587843748,4.4884897,166.1,166.07,21.0753]
[1730587843928,6.0186,166.15,166.07,21.0753]
[1730587844124,4.48849878,166.14,166.07,21.0753]
[1730587844442,4.48849878,166.13,166.07,21.0753]
[1730587844640,4.48849878,166.12,166.07,21.0753]
[1730587844837,4.48849878,166.11,166.07,21.0753]
[1730587845148,4.48849878,166.1,166.07,21.0753]
[1730587845340,6.0186,166.15,166.07,21.0753]
[1730587845526,4.48922631,166.14,166.07,21.0753]
[1730587845728,4.48922631,166.13,166.07,21.0753]
[1730587846047,4.48922631,166.12,166.07,21.0753]
[1730587846231,4.48922631,166.11,166.07,21.0753]
[1730587846429,4.48922631,166.1,166.07,21.0753]
[1730587846744,4.48922631,166.09,166.07,21.0753]
[1730587846940,6.0186,166.15,166.07,21.0753]
[1730587847323,4.48861911,166.14,166.07,21.0753]
[1730587847528,4.48831597,166.13,166.07,21.0753]
[1730587847745,4.48831597,166.12,166.07,21.0753]
[1730587848040,4.48831597,166.11,166.07,21.0753]
[1730587848241,4.48831597,166.1,166.07,21.0753]
[1730587848432,4.48831597,166.09,166.07,21.0753]
[1730587848632,6.0186,166.15,166.07,21.0753]
[1730587848831,4.48744475,166.14,166.07,21.0753]
[1730587849033,4.48744475,166.13,166.07,21.0753]
[1730587849232,4.48744475,166.12,166.07,21.0753]
[1730587849424,4.48744475,166.11,166.07,21.0753]
[1730587849623,4.48744475,166.1,166.07,21.0753]
[1730587849932,4.48744475,166.09,166.07,21.0753]
[1730587850244,6.0186,166.15,166.07,21.0753]
[1730587850443,4.48751041,166.14,166.07,21.0753]
[1730587850646,4.48751041,166.13,166.07,21.0753]
[1730587850826,4.48751041,166.12,166.07,21.0753]
[1730587851031,4.48751041,166.11,166.07,21.0753]
[1730587851348,6.0186,166.15,166.07,21.0753]
[1730587851528,4.4873072,166.14,166.07,21.0753]
[1730587851726,4.4873072,166.13,166.07,21.0753]
[1730587852026,4.4873072,166.12,166.07,21.0753]
[1730587852336,4.4873072,166.11,166.07,21.0753]
[1730587852548,4.4873072,166.1,166.07,21.0753]
[1730587852738,6.0186,166.15,166.07,21.0753]
[1730587852739,4.4873072,166.09,166.07,21.0753]
[1730587852921,6.0186,166.15,166.07,21.0753]
[1730587853247,4.4873207,166.14,166.07,21.0753]
[1730587853546,4.4873207,166.13,166.07,21.0753]
[1730587853844,4.4873207,166.12,166.07,21.0753]
[1730587854142,4.4873207,166.11,166.07,21.0753]
[1730587854324,6.0186,166.15,166.07,21.0753]
[1730587854325,4.4873207,166.1,166.07,21.0753]
[1730587854525,4.4873207,166.09,166.07,21.0753]
[1730587854725,6.0186,166.15,166.07,21.0753]
[1730587854924,4.48728395,166.14,166.07,21.0753]
[1730587855137,4.48728395,166.13,166.07,21.0753]
[1730587855353,4.48715908,166.12,166.07,21.0753]
[1730587855544,4.48715908,166.11,166.07,21.0753]
[1730587855740,4.48727533,166.1,166.07,21.0753]
[1730587856039,4.48727533,166.09,166.07,21.0753]
[1730587856218,6.019,166.14,166.07,21.0753]
[1730587856419,4.48722201,166.13,166.07,21.0753]
[1730587856648,4.48722201,166.12,166.07,21.0753]
[1730587856848,4.48722201,166.11,166.07,21.0753]
[1730587857050,4.48722201,166.1,166.07,21.0753]
[1730587857231,4.48713004,166.09,166.07,21.0753]
[1730587857430,26.0186,166.15,166.07,21.0753]
[1730587857629,4.48724591,166.14,166.07,21.0753]
[1730587857937,4.48724591,166.13,166.07,21.0753]
[1730587858239,4.48724591,166.12,166.07,21.0753]
[1730587858443,4.48724591,166.11,166.07,21.0753]
[1730587858655,4.48724591,166.1,166.07,21.0753]
[1730587858823,4.48724591,166.09,166.07,21.0753]
[1730587859150,6.019,166.14,166.07,21.0753]
[1730587859337,4.48713232,166.13,166.07,21.0753]
[1730587859645,4.48713232,166.12,166.07,21.0753]
[1730587859852,4.48713232,166.11,166.07,21.0753]
[1730587860031,4.48713232,166.1,166.07,21.0753]
[1730587860233,4.48713232,166.09,166.07,21.0753]
[1730587860534,6.019,166.14,166.07,21.0753]
[1730587860746,4.49038976,166.13,166.07,21.0753]
[1730587860933,4.49038976,166.12,166.07,21.0753]
[1730587861142,4.49038976,166.11,166.07,21.0753]
[1730587861340,4.49038976,166.1,166.07,21.0753]
[1730587861533,4.49038976,166.09,166.07,21.0753]
[1730587861737,6.019,166.14,166.07,21.0753]
[1730587861929,4.49061641,166.13,166.07,21.0753]
[1730587862136,4.49061641,166.12,166.07,21.0753]
[1730587862353,4.49061641,166.11,166.07,21.0753]
[1730587862650,4.49061641,166.1,166.07,21.0753]
[1730587862852,6.019,166.14,166.07,21.0753]
[1730587863039,4.49112558,166.13,166.07,21.0753]
[1730587863233,4.49112558,166.12,166.07,21.0753]
[1730587863433,4.49112558,166.11,166.07,21.0753]
[1730587863736,4.49112558,166.1,166.07,21.0753]
[1730587863933,6.019,166.14,166.07,21.0753]
[1730587864133,4.4910402,166.13,166.07,21.0753]
[1730587864433,4.4910402,166.12,166.07,21.0753]
[1730587864627,4.4910402,166.11,166.07,21.0753]
[1730587864830,4.4910402,166.1,166.07,21.0753]
[1730587865047,4.49110257,166.09,166.07,21.0753]
[1730587865350,6.019,166.14,166.07,21.0753]
[1730587865532,4.49096591,166.13,166.07,21.0753]
[1730587865733,4.49096591,166.12,166.07,21.0753]
[1730587866046,4.49129175,166.11,166.07,21.0753]
[1730587866244,4.49129175,166.1,166.07,21.0753]
[1730587866447,4.49129175,166.09,166.07,21.0753]
[1730587866644,6.019,166.14,166.07,21.0753]
[1730587866840,4.4913921,166.13,166.07,21.0753]
[1730587867034,4.4913921,166.12,166.07,21.0753]
[1730587867236,6.019,166.14,166.07,21.0753]
[1730587867431,4.49140389,166.11,166.07,21.0753]
[1730587867636,4.49140389,166.1,166.07,21.0753]
[1730587867846,4.49140389,166.09,166.07,21.0753]
[1730587868149,6.019,166.14,166.07,21.0753]
[1730587868351,4.49168092,166.13,166.07,21.0753]
[1730587868545,4.49168092,166.12,166.07,21.0753]
[1730587868753,4.49168092,166.11,166.07,21.0753]
[1730587869049,4.49168092,166.1,166.07,21.0753]
[1730587869552,4.49168092,166.09,166.07,21.0753]
[1730587869743,6.019,166.14,166.07,21.0753]
[1730587869945,4.49162797,166.13,166.07,21.0753]
[1730587870252,4.49162797,166.12,166.07,51.183]
[1730587870439,4.49162797,166.11,166.07,51.183]
[1730587870747,4.49162797,166.1,166.07,51.183]
[1730587871048,20.0,166.15,166.07,51.183]
[1730587871242,4.49205413,166.14,166.07,51.183]
[1730587871434,4.49205413,166.13,166.07,51.183]
[1730587871754,4.49205413,166.12,166.07,51.183]
[1730587871930,4.49205413,166.11,166.07,51.183]
[1730587872126,4.49205413,166.1,166.07,51.183]
[1730587872347,20.0,166.15,166.07,51.183]
[1730587872544,4.49210169,166.14,166.07,51.183]
[1730587872742,4.49210169,166.13,166.07,51.183]
[1730587872947,4.49210169,166.12,166.07,51.183]
[1730587873153,4.49210169,166.11,166.07,51.183]
[1730587873451,4.49210169,166.1,166.07,51.183]
[1730587873755,20.0,166.15,166.07,51.183]
[1730587873942,4.49213402,166.14,166.07,51.183]
[1730587874142,4.49213402,166.13,166.07,51.183]
[1730587874350,4.49213402,166.12,166.07,51.183]
[1730587874552,4.49213402,166.11,166.07,51.183]
[1730587874738,4.49213402,166.1,166.07,51.183]
[1730587875053,20.0,166.15,166.07,51.183]
[1730587875256,4.4922187,166.14,166.07,51.183]
[1730587875442,4.4922187,166.13,166.07,51.183]
[1730587875632,4.4922187,166.12,166.07,51.183]
[1730587875829,4.4922187,166.11,166.07,51.183]
[1730587876032,4.4922187,166.1,166.07,51.183]
[1730587876257,20.0,166.15,166.07,51.183]
[1730587876437,4.49247001,166.14,166.07,51.183]
[1730587876633,4.49247001,166.13,166.07,51.183]
[1730587876844,4.49247001,166.12,166.07,51.183]
[1730587877045,4.49247001,166.11,166.07,51.183]
[1730587877256,4.49247001,166.1,166.07,51.183]
[1730587877430,20.0,166.15,166.07,51.183]
[1730587877636,4.49247964,166.14,166.07,51.183]
[1730587877843,4.49247964,166.13,166.07,51.183]
[1730587878048,4.49247964,166.12,166.07,51.183]
[1730587878246,4.49247964,166.11,166.07,51.183]
[1730587878457,4.49247964,166.1,166.07,51.183]
[1730587878661,20.0,166.15,166.07,51.183]
[1730587878861,4.4923369,166.14,166.07,51.183]
[1730587879037,4.4923369,166.13,166.07,51.183]
[1730587879363,4.4923369,166.12,166.07,51.183]
[1730587879531,4.4923369,166.11,166.07,51.183]
[1730587879734,4.4923369,166.1,166.07,51.183]
[1730587879930,20.0,166.15,166.07,51.183]
[1730587880155,4.49225998,166.14,166.07,51.183]
[1730587880358,4.49225998,166.13,166.07,51.183]
[1730587880556,4.49225998,166.12,166.07,51.183]
[1730587880754,26.0186,166.15,166.07,51.183]
[1730587881265,4.49213581,166.14,166.07,51.183]
[1730587881441,4.49213581,166.13,166.07,51.183]
[1730587881642,4.49213581,166.12,166.07,51.183]
[1730587881860,4.49213581,166.11,166.07,51.183]
[1730587882174,4.49213581,166.1,166.07,51.183]
[1730587882352,26.0186,166.15,166.07,51.183]
[1730587882540,10.51167998,166.14,166.07,51.183]
[1730587882746,4.49267998,166.13,166.07,51.183]
[1730587882945,4.49267998,166.12,166.07,51.183]
[1730587883254,4.49267998,166.11,166.07,51.183]
[1730587883458,4.49267998,166.1,166.07,51.183]
[1730587883656,4.49267998,166.09,166.07,51.183]
[1730587883970,4.49267998,166.08,166.07,51.183]
[1730587884642,4.49248703,166.08,166.07,51.183]
[1730587892169,4.49588281,166.08,166.07,51.183]
[1730587895973,6.0194,166.13,166.07,51.183]
[1730587896266,4.49337753,166.12,166.07,51.183]
[1730587896568,4.49337753,166.11,166.07,51.183]
[1730587896864,4.49337753,166.1,166.07,51.183]
[1730587897052,4.49337753,166.09,166.07,51.183]
[1730587897261,4.49337753,166.08,166.07,51.183]
[1730587899878,20.0,166.15,166.07,51.183]
[1730587900049,4.49475443,166.08,166.07,51.183]
[1730587900369,6.019,166.14,166.07,51.183]
[1730587900549,4.49476286,166.13,166.07,51.183]
[1730587900895,4.49476286,166.12,166.07,51.183]
[1730587901048,26.0186,166.15,166.07,51.183]
[1730587901049,4.49476286,166.11,166.07,51.183]
[1730587901250,4.49476286,166.1,166.07,51.183]
[1730587901567,26.0186,166.15,166.07,51.183]
[1730587901568,4.49476286,166.09,166.07,51.183]
[1730587901757,4.49476286,166.08,166.07,51.183]
[1730587903967,4.49472166,166.08,166.07,51.183]
[1730587904771,4.49472166,166.08,166.07,74.959884]
[1730587904971,20.0,166.15,166.07,74.959884]
[1730587905269,4.4950441,166.14,166.07,74.959884]
[1730587905575,20.0,166.15,166.07,74.959884]
[1730587905576,4.4950441,166.13,166.07,74.959884]
[1730587905780,4.4950441,166.12,166.07,74.959884]
[1730587906072,4.4950441,166.11,166.07,74.959884]
[1730587906252,4.4950441,166.1,166.07,74.959884]
[1730587906454,4.4950441,166.09,166.07,74.959884]
[1730587906656,20.0,166.15,166.07,74.959884]
[1730587906864,4.4941863,166.14,166.07,74.959884]
[1730587907050,4.4941863,166.13,166.07,74.959884]
[1730587907250,4.4941863,166.12,166.07,74.959884]
[1730587907468,4.4941863,166.11,166.07,74.959884]
[1730587907672,20.0,166.15,166.07,74.959884]
[1730587907673,4.4941863,166.1,166.07,74.959884]
[1730587907972,4.49262291,166.09,166.07,74.959884]
[1730587908271,4.4924106,166.08,166.07,51.183]
[1730587911659,26.0186,166.15,166.07,51.183]
[1730587911860,4.49186622,166.14,166.07,51.183]
[1730587912059,4.49186622,166.13,166.07,51.183]
[1730587912271,4.49186622,166.12,166.07,51.183]
[1730587912468,4.49186622,166.11,166.07,51.183]
[1730587912681,4.49186622,166.1,166.07,51.183]
[1730587912884,4.49186622,166.09,166.07,51.183]
[1730587913188,4.49186622,166.08,166.07,51.183]
[1730587915477,26.0186,166.15,166.07,51.183]
[1730587915678,4.49162809,166.14,166.07,51.183]
[1730587915884,4.49162809,166.13,166.07,51.183]
[1730587916075,4.49162809,166.12,166.07,51.183]
[1730587916278,4.49162809,166.11,166.07,51.183]
[1730587916475,4.49162809,166.1,166.07,51.183]
[1730587916669,4.49162809,166.09,166.07,51.183]
[1730587916870,4.49162809,166.08,166.07,51.183]
[1730587920795,26.0186,166.15,166.07,51.183]
[1730587921000,4.49182224,166.14,166.07,51.183]
[1730587921174,4.49182224,166.13,166.07,51.183]
[1730587921375,4.49182224,166.12,166.07,51.183]
[1730587921684,4.49178876,166.11,166.07,51.183]
[1730587921886,4.49178876,166.1,166.07,51.183]
[1730587922086,4.49178876,166.09,166.07,51.183]
[1730587922289,26.0186,166.15,166.07,51.183]
[1730587922485,4.49172592,166.14,166.07,51.183]
[1730587922682,4.49172592,166.13,166.07,51.183]
[1730587922885,4.49172592,166.12,166.08,20.0]
[1730587923096,4.49190692,166.11,166.08,20.0]
[1730587923290,4.49190692,166.1,166.08,20.0]
[1730587923597,4.49190692,166.09,166.08,20.0]
[1730587923987,0.109458,166.16,166.08,20.0]
[1730587924181,4.49158771,166.15,166.08,20.0]
[1730587924379,4.49158771,166.14,166.08,20.0]
[1730587924590,4.49158771,166.13,166.08,20.0]
[1730587924792,4.49158771,166.12,166.08,20.0]
[1730587924992,4.49158771,166.11,166.09,21.0728]
[1730587925180,4.49109564,166.1,166.09,21.0728]
[1730587925377,4.49109564,166.1,166.09,41.0728]
[1730587925790,4.49109564,166.1,166.09,64.849684]
[1730587927502,0.109458,166.16,166.09,64.849684]
[1730587929202,0.1,166.13,166.0,38.64971731]
[1730587929380,20.0,166.08,165.97,15.1561]
[1730587929700,8.14185695,166.07,165.97,6.0251]
[1730587930595,6.0219,166.06,165.96,21.0892]
[1730587931106,6.0219,166.06,165.97,20.0]
[1730587931274,23.776884,166.05,165.97,20.0]
[1730587931481,23.776884,166.05,165.96,21.0892]
[1730587931787,16.4738,166.04,165.96,21.0892]
[1730587932405,6.023,166.03,165.96,21.0892]
[1730587933505,11.64511621,166.02,165.96,21.0892]
[1730587933687,4.47889085,166.01,165.96,21.0892]
[1730587933882,4.47889085,166.0,165.96,21.0892]
[1730587934083,4.47836163,165.99,165.96,21.0892]
[1730587934284,6.023,166.03,165.96,21.0892]
[1730587934499,11.63462293,166.02,165.96,21.0892]
[1730587934705,11.63462293,166.01,165.96,21.0892]
[1730587934878,4.47485497,166.0,165.96,21.0892]
[1730587935081,6.023,166.03,165.96,21.0892]
[1730587935387,11.632157,166.02,165.96,21.0892]
[1730587935601,4.47390654,166.01,165.96,21.0892]
[1730587935799,4.47390654,166.0,165.96,21.0892]
[1730587936101,22.4964,166.04,165.96,21.0892]
[1730587936306,11.62703332,166.03,165.96,21.0892]
[1730587936486,11.62703332,166.02,165.96,21.0892]
[1730587936807,4.47193589,166.01,165.96,21.0892]
[1730587937097,22.4964,166.04,165.96,21.0892]
[1730587937508,11.62186528,166.03,165.96,21.0892]
[1730587937804,4.46994818,166.02,165.96,21.0892]
[1730587937984,4.46994818,166.01,165.96,21.0892]
[1730587938306,22.4964,166.04,165.96,21.0892]
[1730587938491,11.61846933,166.03,165.96,21.0892]
[1730587938692,4.46864205,166.02,165.96,21.0892]
[1730587939003,22.4964,166.04,165.96,21.0892]
[1730587939200,4.46867274,166.03,165.96,21.0892]
[1730587939404,4.46867274,166.02,165.96,21.0892]
[1730587939593,22.4964,166.04,165.96,21.0892]
[1730587939796,4.46744244,166.03,165.96,21.0892]
[1730587940098,4.46744244,166.02,165.96,21.0892]
[1730587940297,22.4964,166.04,165.96,21.0892]
[1730587940487,4.46642538,166.03,165.96,21.0892]
[1730587940787,4.46642538,166.02,165.96,21.0892]
[1730587940987,22.4964,166.04,165.96,21.0892]
[1730587941186,4.46541388,166.03,165.96,21.0892]
[1730587941390,22.4964,166.04,165.96,21.0892]
[1730587941593,4.46531929,166.03,165.96,21.0892]
[1730587941798,22.4964,166.04,165.96,21.0892]
[1730587942011,4.46528865,166.03,165.96,21.0892]
[1730587942189,22.4964,166.04,165.96,21.0892]
[1730587942392,4.46440295,166.03,165.96,21.0892]
[1730587942713,22.4964,166.04,165.96,21.0892]
[1730587942883,4.46442233,166.03,165.96,21.0892]
[1730587943084,22.4964,166.04,165.96,21.0892]
[1730587943325,4.46380227,166.03,165.96,21.0892]
[1730587943486,22.4964,166.04,165.96,21.0892]
[1730587943688,4.46358014,166.03,165.96,21.0892]
[1730587943988,22.4964,166.04,165.96,21.0892]
[1730587944207,4.46276262,166.03,165.96,21.0892]
[1730587944387,22.4964,166.04,165.96,21.0892]
[1730587944586,4.46255631,166.03,165.96,21.0892]
[1730587944891,22.4964,166.04,165.96,21.0892]
[1730587945192,4.46257368,166.03,165.96,21.0892]
[1730587945399,22.4964,166.04,165.96,21.0892]
[1730587945610,4.4616828,166.03,165.96,21.0892]
[1730587945922,22.4964,166.04,165.96,21.0892]
[1730587946095,4.46168334,166.03,165.96,21.0892]
[1730587946295,22.4964,166.04,165.96,21.0892]
[1730587946597,4.46074807,166.03,165.96,21.0892]
[1730587946795,22.4964,166.04,165.96,21.0892]
[1730587946998,31.59731134,166.03,165.96,21.0892]
[1730587947215,4.46074228,166.02,165.96,21.0892]
[1730587947392,20.0,166.03,165.96,21.0892]
[1730587947393,4.46074228,166.01,165.96,21.0892]
[1730587947594,20.0,166.03,165.96,21.0892]
[1730587947799,4.45794649,166.02,165.96,21.0892]
[1730587948004,4.45794649,166.01,165.96,21.0892]
[1730587948193,20.0,166.03,165.96,21.0892]
[1730587948389,4.45687941,166.02,165.96,21.0892]
[1730587948714,20.0,166.03,165.96,21.0892]
[1730587949008,4.45689194,166.02,165.96,21.0892]
[1730587949205,26.023,166.03,165.96,21.0892]
[1730587949510,4.45547328,166.02,165.96,21.0892]
[1730587949716,26.023,166.03,165.96,21.0892]
[1730587949923,4.45548581,166.02,165.96,21.0892]
[1730587950210,26.023,166.03,165.96,21.0892]
[1730587950513,10.47789497,166.02,165.96,21.0892]
[1730587950814,6.0234,166.02,165.96,21.0892]
[1730587952908,6.023,166.03,165.96,21.0892]
[1730587968834,23.776884,166.02,165.96,21.0892]
[1730587969006,6.0237,166.01,165.96,21.0892]
[1730587971222,3.57520506,166.0,165.96,21.0892]
[1730587971418,6.0237,166.01,165.96,21.0892]
[1730587971628,3.57517856,166.0,165.96,21.0892]
[1730587971829,6.0237,166.01,165.96,21.0892]
[1730587972006,3.57433258,166.0,165.96,21.0892]
[1730587972206,3.57433258,165.99,165.96,21.0892]
[1730587972445,6.0237,166.01,165.96,21.0892]
[1730587972617,3.57764672,166.0,165.96,21.0892]
[1730587972815,3.57764672,165.99,165.96,21.0892]
[1730587973019,6.0237,166.01,165.96,21.0892]
[1730587973235,3.58435228,166.0,165.96,21.0892]
[1730587973435,3.58435228,165.99,165.96,21.0892]
[1730587973746,3.58435228,165.98,165.96,21.0892]
[1730587973948,3.58435228,165.97,165.96,21.0892]
[1730587976855,6.0237,166.01,165.96,21.0892]
[1730587977137,3.58347314,165.97,165.96,21.0892]
[1730587977329,7.16694628,165.97,165.96,21.0892]
[1730587979525,3.58347314,165.97,165.96,21.0892]
[1730587981937,29.800284,166.02,165.96,21.0892]
[1730587982146,8.04285585,166.01,165.96,21.0892]
[1730587982317,3.58495599,166.0,165.96,21.0892]
[1730587982519,3.58495599,165.99,165.96,21.0892]
[1730587982720,3.58495599,165.98,165.96,21.0892]
[1730587982921,29.800284,166.02,165.96,21.0892]
[1730587983252,8.04691152,166.01,165.96,21.0892]
[1730587983541,8.04691152,166.0,165.96,21.0892]
[1730587983723,3.58503532,165.99,165.96,21.0892]
[1730587983924,3.58503532,165.98,165.96,21.0892]
[1730587984224,29.800284,166.02,165.96,21.0892]
[1730587984426,15.19335063,166.01,165.96,21.0892]
[1730587984631,8.04989072,166.0,165.96,21.0892]
[1730587984818,3.58522828,165.99,165.96,21.0892]
[1730587985014,3.58522828,165.98,165.96,21.0892]
[1730587985220,29.800284,166.02,165.96,21.0892]
[1730587985434,15.20308342,166.01,165.96,21.0892]
[1730587985736,16.20219676,166.06,165.96,21.0892]
[1730587985737,8.05378183,166.0,165.96,21.0892]
[1730587985918,22.4967,166.04,165.96,21.0892]
[1730587985919,3.58546834,165.99,165.96,21.0892]
[1730587986120,3.58546834,165.98,165.96,21.0892]
[1730587986310,20.0,166.03,165.96,21.0892]
[1730587986511,15.21616603,166.02,165.96,21.0892]
[1730587986715,15.21616603,166.01,165.96,21.0892]
[1730587986934,3.58599473,166.0,165.96,21.0892]
[1730587987432,15.22919476,165.99,165.96,21.0892]
[1730587987647,8.05926962,165.98,165.96,21.0892]
[1730587987856,4.47328737,165.97,165.96,21.0892]
[1730587990743,4.48117478,165.97,165.96,21.0892]
[1730587991132,20.0,166.03,165.96,21.0892]
[1730587991332,15.23837605,166.02,165.96,21.0892]
[1730587992032,3.58693302,166.01,165.96,21.0892]
[1730587992639,20.0,166.03,165.96,21.0892]
[1730587993021,3.58721317,166.02,165.96,21.0892]
[1730587993440,3.58717002,166.01,165.96,21.0892]
[1730587994719,10.75837476,166.0,165.96,21.0892]
[1730587994924,11.6532077,166.0,165.96,21.0892]
[1730587995527,15.24087002,165.99,165.96,21.0892]
[1730587995719,4.48200296,165.98,165.96,21.0892]
[1730587995929,4.48200296,165.97,165.96,21.0892]
[1730587996617,4.4828089,165.97,165.96,21.0892]
[1730587997649,26.023,166.03,165.96,21.0892]
[1730587998146,15.24210102,166.02,165.96,21.0892]
[1730587998338,15.24210102,166.01,165.96,21.0892]
[1730587998538,15.24210102,166.0,165.96,21.0892]
[1730587998840,15.24210102,165.99,165.96,21.0892]
[1730587999026,15.24210102,165.98,165.96,21.0892]
[1730587999229,4.48257674,165.97,165.96,21.0892]
[1730588001334,4.48263892,165.97,165.96,21.0892]
[1730588008629,4.48348711,165.97,165.96,21.0892]
[1730588012361,4.48371437,165.97,165.96,21.0892]
[1730588019664,26.023,166.03,165.96,21.0892]
[1730588019842,3.58630209,166.02,165.96,21.0892]
[1730588020050,15.24123087,166.01,165.96,21.0892]
[1730588020360,15.24123087,166.0,165.96,21.0892]
[1730588020557,15.24123087,165.99,165.96,21.0892]
[1730588020757,26.023,166.03,165.96,21.0892]
[1730588020758,15.24123087,165.98,165.96,21.0892]
[1730588020951,4.48273903,165.97,165.96,21.0892]